bitfinex/quotes_ETHUSD_20241023
["timestamp","ask_amount","ask_price","bid_price","bid_amount"]
[1729716628749,4.16319142,2516.0,2515.6,11.28747972]
[1729716629826,0.18857142,2516.0,2515.7,5.79732809]
[1729716630051,4.16321142,2516.0,2515.6,7.31242972]
[1729716630758,4.16321142,2516.0,2515.6,11.28754972]
[1729716631730,0.18857142,2516.0,2515.6,11.28754972]
[1729716632128,0.2379654,2516.0,2515.6,11.28754972]
[1729716632860,0.2379654,2516.0,2515.6,7.31238972]
[1729716633218,0.2379654,2516.0,2515.6,11.28749972]
[1729716634362,0.2379654,2516.0,2515.8,5.79716809]
[1729716634546,3.97444,2516.1,2515.7,1.12874997]
[1729716634752,0.7865,2515.6,2515.5,1.07154366]
[1729716634915,4.76169,2515.6,2515.5,1.07154366]
[1729716635115,4.99963837,2515.6,2515.5,1.07154366]
[1729716635453,6.07934402,2515.6,2515.5,1.07154366]
[1729716637420,4.99963837,2515.6,2515.5,1.07154366]
[1729716638361,1.02444837,2515.6,2515.5,1.07154366]
[1729716638520,4.99963837,2515.6,2515.5,1.07154366]
[1729716639238,1.02444837,2515.6,2515.5,1.07154366]
[1729716639652,4.99963837,2515.6,2515.5,1.07154366]
[1729716640518,7.11513411,2515.6,2514.9,0.7836]
[1729716640715,5.79852809,2515.0,2514.6,0.7836]
[1729716640919,4.2136883,2514.9,2514.6,0.7836]
[1729716641118,0.2373183,2514.9,2514.6,1.83957481]
[1729716641358,0.2373183,2514.9,2514.7,3.97658]
[1729716641580,3.97615,2515.0,2514.6,7.6386229]
[1729716641785,0.2373183,2514.8,2514.6,7.6386229]
[1729716642077,3.97615,2515.0,2514.6,7.6386229]
[1729716642078,3.97616,2515.0,2514.6,7.6385629]
[1729716642394,3.97616,2515.0,2514.6,8.1885629]
[1729716642600,0.2373183,2514.9,2514.7,3.9766]
[1729716642744,8.77589,2515.2,2514.7,3.9766]
[1729716642944,0.2373183,2515.1,2514.7,3.9766]
[1729716643343,0.2373183,2515.1,2514.6,8.1885629]
[1729716643679,4.2134083,2515.1,2514.6,8.1885629]
[1729716643977,4.2134083,2515.1,2514.8,1.82229809]
[1729716644183,0.2373183,2515.1,2514.7,6.61768438]
[1729716644480,0.2373183,2515.1,2514.9,1.82229809]
[1729716644641,0.2373183,2515.1,2514.8,1.82229809]
[1729716644846,0.2373183,2515.1,2514.7,2.64115438]
[1729716645155,4.2133683,2515.1,2514.7,2.64115438]
[1729716645367,4.2133683,2515.1,2514.8,1.82229809]
[1729716647481,4.2133683,2515.1,2514.7,6.61772438]
[1729716647790,4.2133683,2515.1,2514.8,1.82229809]
[1729716647981,4.2133683,2515.1,2514.7,6.61772438]
[1729716648149,4.2133683,2515.1,2514.8,1.82229809]
[1729716649349,4.2133683,2515.1,2514.6,1.3336]
[1729716649557,8.1894483,2515.1,2514.7,1.82229809]
[1729716651558,3.97627,2515.0,2514.6,3.68694909]
[1729716651879,3.97627,2515.0,2514.7,1.82229809]
[1729716651880,0.23664546,2514.9,2514.7,1.82229809]
[1729716652256,4.21296546,2514.9,2514.7,1.82229809]
[1729716652455,4.21296546,2514.9,2514.6,3.68694909]
[1729716653301,3.97684,2514.6,2514.4,0.8314]
[1729716653466,3.97684,2514.6,2514.3,1.07198825]
[1729716653657,3.97661,2514.7,2514.3,2.89428634]
[1729716653855,0.23664546,2514.5,2514.3,1.07198825]
[1729716654193,0.23664546,2514.4,2514.3,1.07198825]
[1729716654989,4.21373546,2514.4,2514.3,1.07198825]
[1729716655364,7.87476291,2514.4,2514.3,1.07198825]
[1729716656581,3.97743,2514.2,2513.7,0.8314]
[1729716656899,3.97774,2514.0,2513.7,0.8314]
[1729716657104,3.97774,2514.0,2513.6,2.44451676]
[1729716657520,2.0586198,2513.9,2513.6,0.62221867]
[1729716657815,0.23632171,2513.9,2513.6,0.56483367]
[1729716658310,0.23632171,2513.9,2513.6,4.54318367]
[1729716658469,0.23632171,2513.9,2513.6,6.36548176]
[1729716658670,0.23632171,2513.9,2513.6,3.97835]
[1729716659797,0.23632171,2513.9,2513.8,3.19429809]
[1729716659999,0.01,2515.0,2514.0,3.97764]
[1729716660000,3.97693,2514.5,2514.0,3.97764]
[1729716660198,6.58486809,2514.6,2514.1,3.97742]
[1729716660409,4.76257,2514.6,2514.1,5.79971809]
[1729716660791,3.97656,2514.8,2514.3,5.79943809]
[1729716660991,5.557542,2514.8,2514.3,5.79943809]
[1729716661524,5.557542,2514.8,2514.4,3.97709]
[1729716661726,5.557542,2514.8,2514.3,1.82229809]
[1729716662022,7.37982009,2514.8,2514.3,3.97723]
[1729716662223,3.97669,2514.7,2514.3,3.97723]
[1729716663126,3.9774,2514.3,2513.9,0.7988]
[1729716663329,3.9774,2514.3,2513.8,4.52792]
[1729716663481,3.97743,2514.2,2513.8,4.52792]
[1729716663681,3.97719,2514.4,2513.9,3.97785]
[1729716665022,3.97719,2514.4,2514.0,3.97764]
[1729716665651,0.8149,2514.5,2514.0,3.97764]
[1729716665957,3.9771,2514.4,2514.0,3.97764]
[1729716667004,5.36635112,2514.5,2514.0,3.97764]
[1729716667879,5.36635112,2514.5,2514.0,4.77204]
[1729716668306,1.38941112,2514.5,2514.1,7.95501]
[1729716668521,0.8149,2514.5,2514.1,7.95501]
[1729716669446,0.8149,2514.5,2514.1,3.97745]
[1729716669952,0.8149,2514.5,2514.1,7.95494]
[1729716671145,0.8149,2514.5,2514.2,3.97739]
[1729716671509,0.23539289,2514.4,2514.2,3.97739]
[1729716673727,0.23539289,2514.4,2514.3,4.82199428]
[1729716674172,3.97647,2514.8,2514.3,4.82199428]
[1729716674631,0.23552927,2514.7,2514.4,3.97702]
[1729716674963,3.97647,2514.8,2514.4,3.97702]
[1729716675149,0.23552927,2514.6,2514.4,3.97702]
[1729716675460,3.97647,2514.8,2514.4,3.97702]
[1729716675461,0.23552927,2514.5,2514.4,3.97702]
[1729716675759,4.73713,2514.9,2514.4,3.97702]
[1729716676057,5.608465,2514.9,2514.4,3.97702]
[1729716676248,0.23552927,2514.8,2514.4,3.97702]
[1729716678460,4.21199927,2514.8,2514.3,4.74245]
[1729716678620,4.21199927,2514.8,2514.3,4.74235]
[1729716678621,0.23552927,2514.8,2514.3,4.74235]
[1729716678825,0.23552927,2514.8,2514.4,3.97701]
[1729716681639,0.23552927,2514.8,2514.4,3.97699]
[1729716682371,0.23552927,2514.8,2514.6,3.97676]
[1729716682546,0.23552927,2514.8,2514.5,3.97686]
[1729716682745,0.23552927,2514.8,2514.6,3.97676]
[1729716682977,0.23552927,2514.8,2514.3,4.74233]
[1729716683268,0.23552927,2514.8,2514.4,3.977]
[1729716684246,6.03617626,2514.8,2514.2,2.37411699]
[1729716684433,6.03617626,2514.8,2514.2,6.35149699]
[1729716684434,4.75428,2514.6,2514.2,6.35149699]
[1729716685051,0.2356571,2514.5,2514.2,6.35149699]
[1729716685452,0.2356571,2514.5,2514.2,5.80149699]
[1729716685670,0.2356571,2514.5,2514.2,1.82411699]
[1729716685871,0.2356571,2514.5,2514.2,5.88095708]
[1729716687493,0.2356571,2514.5,2514.3,1.82411699]
[1729716687647,0.2356571,2514.5,2514.2,5.88095708]
[1729716687850,0.2356571,2514.5,2514.3,1.82411699]
[1729716688091,0.2356571,2514.5,2514.3,5.80133699]
[1729716688653,0.7775,2514.8,2514.5,3.97693]
[1729716689295,4.75397,2514.8,2514.4,2.57871699]
[1729716689654,4.75397,2514.8,2514.4,6.55570699]
[1729716690599,0.7775,2514.8,2514.5,3.97692]
[1729716691726,0.7775,2514.8,2514.5,5.80103699]
[1729716691929,0.7775,2514.8,2514.5,3.97692]
[1729716692274,4.75396,2514.8,2514.4,6.55579699]
[1729716692473,0.7775,2514.8,2514.4,6.55579699]
[1729716693315,4.75404,2514.8,2514.4,6.55579699]
[1729716693520,5.627074,2514.8,2514.4,6.55579699]
[1729716696288,9.603654,2514.8,2514.4,6.55579699]
[1729716696586,5.627074,2514.8,2514.4,6.55579699]
[1729716697012,5.627074,2514.8,2514.3,1.82411699]
[1729716697013,3.97661,2514.7,2514.3,1.82411699]
[1729716697211,3.97662,2514.7,2514.3,3.97724]
[1729716697413,3.97662,2514.7,2514.3,5.80135699]
[1729716697815,4.9369904,2514.7,2514.3,1.82411699]
[1729716700331,4.9369904,2514.7,2514.3,5.80133699]
[1729716700632,0.9603704,2514.7,2514.4,1.82411699]
[1729716700786,4.9369904,2514.7,2514.4,1.82411699]
[1729716700989,4.9369904,2514.7,2514.3,5.80133699]
[1729716701190,0.2356571,2514.6,2514.3,5.80133699]
[1729716701418,0.2356571,2514.6,2514.4,1.82411699]
[1729716701999,0.2356571,2514.6,2514.3,5.80133699]
[1729716702416,0.2356571,2514.6,2514.4,1.82411699]
[1729716704231,0.2356571,2514.6,2514.2,6.56960699]
[1729716704438,0.2356571,2514.6,2514.3,1.82411699]
[1729716704725,0.2356571,2514.6,2514.3,5.80128699]
[1729716705631,0.2356571,2514.6,2514.3,1.82411699]
[1729716705999,0.2356571,2514.6,2514.3,5.80124699]
[1729716707509,3.97662,2514.7,2514.3,5.80124699]
[1729716707700,0.23581048,2514.5,2514.3,5.80124699]
[1729716707901,3.97662,2514.7,2514.3,5.80124699]
[1729716708102,0.23581048,2514.4,2514.3,5.80124699]
[1729716708330,3.97662,2514.7,2514.3,5.80124699]
[1729716708812,0.23581048,2514.6,2514.3,5.80124699]
[1729716709631,4.94597,2514.8,2514.4,3.97708]
[1729716709830,0.23581048,2514.5,2514.4,3.97708]
[1729716710026,3.97662,2514.7,2514.3,5.80124699]
[1729716710230,0.23581048,2514.5,2514.3,9.77838699]
[1729716710426,3.97662,2514.7,2514.3,9.77838699]
[1729716710725,0.23581048,2514.6,2514.3,9.77838699]
[1729716710941,4.94597,2514.8,2514.3,9.77838699]
[1729716711146,0.23581048,2514.5,2514.3,9.77838699]
[1729716711349,4.94597,2514.8,2514.3,9.77838699]
[1729716711525,0.23581048,2514.4,2514.3,5.80124699]
[1729716711727,3.9767,2514.7,2514.3,5.80134699]
[1729716711933,0.23581048,2514.4,2514.3,5.80134699]
[1729716712261,4.94598,2514.8,2514.4,3.97707]
[1729716712432,0.494598,2514.7,2514.4,3.97707]
[1729716715923,0.494598,2514.7,2514.3,5.80134699]
[1729716716118,0.494598,2514.7,2514.3,9.77849699]
[1729716716315,0.23581048,2514.6,2514.3,5.80126699]
[1729716716551,0.23581048,2514.6,2514.3,9.77843699]
[1729716716773,0.23581048,2514.6,2514.3,9.77841699]
[1729716717142,0.23581048,2514.6,2514.4,3.97706]
[1729716718044,0.23581048,2514.6,2514.3,9.77844699]
[1729716718446,0.23581048,2514.6,2514.4,3.97708]
[1729716719753,0.23581048,2514.6,2514.5,3.97693]
[1729716719951,0.7775,2514.8,2514.5,3.97693]
[1729716720157,0.23582755,2514.6,2514.5,3.97693]
[1729716720384,0.7775,2514.8,2514.5,3.97693]
[1729716720544,0.23582755,2514.6,2514.5,5.80104699]
[1729716720878,4.78515,2515.0,2514.6,3.9767]
[1729716722678,4.78515,2515.0,2514.6,5.80081699]
[1729716722889,0.62225249,2515.3,2515.0,3.97614]
[1729716723048,0.7672,2515.6,2515.2,1.82411699]
[1729716723241,0.7672,2515.6,2515.1,2.57421699]
[1729716723469,0.6566367,2515.5,2515.1,2.57421699]
[1729716723681,4.6319867,2515.5,2515.1,6.55010699]
[1729716725047,4.6319867,2515.5,2515.1,2.57421699]
[1729716726251,3.97535,2515.5,2515.1,6.55014699]
[1729716726582,3.97535,2515.5,2515.1,2.57421699]
[1729716728889,7.95082,2515.5,2515.1,2.57421699]
[1729716729066,3.97535,2515.5,2515.1,2.57421699]
[1729716729969,3.97535,2515.5,2515.1,6.55017699]
[1729716730170,3.97535,2515.5,2515.1,2.57421699]
[1729716731401,0.2280601,2515.4,2515.1,2.57421699]
[1729716731611,0.2280601,2515.4,2515.1,6.55017699]
[1729716731805,0.2280601,2515.4,2515.1,7.60279769]
[1729716732012,0.2280601,2515.4,2515.1,3.62683769]
[1729716732199,0.2280601,2515.4,2515.1,1.82411699]
[1729716733126,0.799,2515.3,2515.0,1.82411699]
[1729716733407,4.77468,2515.3,2515.0,1.82411699]
[1729716733712,0.2280601,2515.2,2515.0,1.82411699]
[1729716733906,4.77468,2515.3,2515.0,1.82411699]
[1729716734108,4.76875,2515.5,2515.2,1.82411699]
[1729716734313,4.76855,2515.7,2515.4,1.82411699]
[1729716734517,0.7934,2515.7,2515.5,1.82411699]
[1729716734819,3.97488,2515.8,2515.4,6.56641699]
[1729716735113,3.97488,2515.8,2515.4,4.7423]
[1729716735575,3.97488,2515.8,2515.4,6.56641699]
[1729716735775,5.0316017,2515.8,2515.4,6.56641699]
[1729716735971,5.0316017,2515.8,2515.4,2.59091699]
[1729716736183,3.97511,2515.7,2515.4,0.7668]
[1729716736590,3.97511,2515.7,2515.4,2.59091699]
[1729716736878,3.97511,2515.7,2515.4,0.7668]
[1729716737681,3.97511,2515.7,2515.4,2.59091699]
[1729716738080,3.9752,2515.6,2515.3,1.82411699]
[1729716738312,3.9752,2515.6,2515.2,4.73195]
[1729716738313,3.9752,2515.6,2515.2,6.55606699]
[1729716738613,4.78444,2515.5,2515.0,4.73226]
[1729716738824,4.78444,2515.5,2515.1,1.82411699]
[1729716738973,3.97552,2515.4,2515.0,2.58031699]
[1729716739182,3.97606,2515.1,2514.8,0.7562]
[1729716739400,3.97606,2515.1,2514.5,6.9769]
[1729716739401,3.97606,2515.1,2514.7,5.80065699]
[1729716739734,4.78478,2515.3,2515.0,1.82411699]
[1729716740696,1.83521487,2515.6,2515.2,1.82411699]
[1729716741002,0.7521,2515.6,2515.3,1.82411699]
[1729716741233,4.7273,2515.6,2515.4,1.82411699]
[1729716741500,3.975,2515.8,2515.3,5.79976699]
[1729716741501,4.72706,2515.8,2515.3,5.79976699]
[1729716741700,8.70202,2515.8,2515.3,5.79976699]
[1729716742054,4.72706,2515.8,2515.4,3.9755]
[1729716742215,8.70202,2515.8,2515.4,3.9755]
[1729716742415,4.72706,2515.8,2515.3,5.79976699]
[1729716742601,3.97504,2515.7,2515.3,5.79976699]
[1729716744227,3.97519,2515.6,2515.2,5.79993699]
[1729716744603,3.97519,2515.6,2515.2,3.97582]
[1729716744801,3.97519,2515.6,2515.2,5.79993699]
[1729716745005,3.97519,2515.6,2515.2,3.97582]
[1729716745951,3.97519,2515.6,2515.2,5.79985699]
[1729716746108,3.97519,2515.6,2515.2,3.97574]
[1729716746437,0.8159,2515.4,2514.9,4.75736]
[1729716746645,4.79152,2515.4,2514.9,10.55769699]
[1729716747057,0.22924002,2515.3,2514.9,10.55769699]
[1729716747248,0.22924002,2515.3,2515.0,1.82411699]
[1729716747816,4.20491002,2515.3,2514.8,5.80056699]
[1729716748017,8.18069002,2515.3,2514.8,5.80056699]
[1729716748438,4.20491002,2515.3,2514.9,3.97623]
[1729716748760,4.20491002,2515.3,2514.9,5.80034699]
[1729716749125,5.10453802,2515.3,2514.9,1.82411699]
[1729716749731,5.10453802,2515.3,2514.9,5.80038699]
[1729716750129,5.10453802,2515.3,2515.0,1.82411699]
[1729716750330,0.22924002,2515.3,2515.1,1.82411699]
[1729716750622,0.22924002,2515.3,2515.0,5.80024699]
[1729716752230,0.22924002,2515.3,2515.1,5.80003699]
[1729716753051,0.22924002,2515.3,2515.1,3.97592]
[1729716753432,0.22924002,2515.3,2515.1,5.80003699]
[1729716754071,0.22924002,2515.3,2515.1,3.97592]
[1729716754766,0.22924002,2515.3,2515.1,5.80003699]
[1729716756266,0.22924002,2515.3,2515.2,5.79993699]
[1729716756466,0.22924002,2515.3,2515.1,6.62583699]
[1729716756690,3.97537,2515.5,2515.1,10.60173699]
[1729716757001,0.22915452,2515.2,2515.1,6.62581699]
[1729716757294,3.97537,2515.5,2515.1,6.62581699]
[1729716757460,0.22915452,2515.2,2515.1,6.62581699]
[1729716757663,0.22915452,2515.2,2515.1,6.70532831]
[1729716757870,3.97522,2515.6,2515.2,3.97577]
[1729716758105,5.0327447,2515.6,2515.2,3.97577]
[1729716759891,5.0327447,2515.6,2515.1,6.62581699]
[1729716759892,3.97537,2515.5,2515.1,4.8017]
[1729716760068,3.97537,2515.5,2515.1,8.77761]
[1729716760270,3.97537,2515.5,2515.1,4.8017]
[1729716760903,5.0327447,2515.6,2515.1,8.77754]
[1729716761388,0.22915452,2515.5,2515.2,3.97576]
[1729716762195,0.22915452,2515.5,2515.1,4.80164]
[1729716762510,4.20453452,2515.5,2515.1,4.80164]
[1729716763103,0.22915452,2515.5,2515.2,3.97582]
[1729716764713,0.22915452,2515.5,2515.3,3.97561]
[1729716764871,0.8008,2515.7,2515.3,9.77528699]
[1729716765071,0.8008,2515.7,2515.4,3.97543]
[1729716765417,0.22924002,2515.6,2515.4,3.97543]
[1729716768021,0.22924002,2515.6,2515.3,5.79967699]
[1729716768310,0.22924002,2515.6,2515.3,3.97556]
[1729716769403,0.22924002,2515.6,2515.3,5.79967699]
[1729716769600,0.22924002,2515.6,2515.3,3.97556]
[1729716772319,0.22924002,2515.6,2515.2,3.97579]
[1729716772518,4.20448002,2515.6,2515.2,3.97579]
[1729716772883,4.20448002,2515.6,2515.2,5.79990699]
[1729716774131,4.20448002,2515.6,2515.5,5.79946699]
[1729716774132,0.22924002,2515.6,2515.5,5.79946699]
[1729716774284,0.22924002,2515.6,2515.5,1.82411699]
[1729716774490,0.22928276,2515.6,2515.5,5.79939699]
[1729716774807,3.97457,2516.0,2515.5,5.79939699]
[1729716775002,0.22928276,2515.6,2515.5,3.97528]
[1729716775205,3.97457,2516.0,2515.5,6.67544399]
[1729716775517,3.97457,2516.0,2515.6,1.82411699]
[1729716775921,3.97457,2516.0,2515.5,5.79939699]
[1729716776092,3.97457,2516.0,2515.6,1.82411699]
[1729716776420,0.22959042,2515.9,2515.5,5.79939699]
[1729716776620,0.22959042,2515.9,2515.6,1.82411699]
[1729716776832,0.22959042,2515.9,2515.5,5.87889352]
[1729716776982,0.22959042,2515.9,2515.6,7.61454534]
[1729716777182,3.97443,2516.1,2515.6,6.62911699]
[1729716777481,0.22959042,2515.8,2515.6,4.805]
[1729716777682,0.22959042,2515.7,2515.6,4.805]
[1729716778485,3.97443,2516.1,2515.6,4.805]
[1729716778725,0.22959042,2515.7,2515.6,4.805]
[1729716778926,3.97443,2516.1,2515.6,5.8654397]
[1729716779219,3.97443,2516.1,2515.6,4.805]
[1729716779419,0.22959042,2516.0,2515.6,4.805]
[1729716780311,4.20422042,2516.0,2515.6,4.80506]
[1729716780819,0.22959042,2516.0,2515.6,4.80506]
[1729716781192,0.22959042,2516.0,2515.7,3.97501]
[1729716787600,0.22959042,2516.0,2515.9,5.79883699]
[1729716787785,5.79815699,2516.4,2515.9,0.7885]
[1729716787991,0.229975,2516.0,2515.9,0.7885]
[1729716788192,3.97416,2516.3,2515.9,0.7885]
[1729716788492,0.229975,2516.0,2515.9,0.7885]
[1729716788693,3.97416,2516.3,2515.9,1.4472337]
[1729716788928,3.97416,2516.3,2515.9,0.7885]
[1729716789235,0.229975,2516.2,2515.9,0.7885]
[1729716789534,4.204215,2516.2,2515.9,0.7885]
[1729716789705,3.97424,2516.2,2515.9,0.7885]
[1729716789887,0.23028259,2516.1,2515.9,0.7885]
[1729716790642,0.23028259,2516.1,2515.9,4.76319]
[1729716790931,0.23028259,2516.1,2515.9,5.8193927]
[1729716791226,0.23028259,2516.0,2515.9,5.8193927]
[1729716791594,3.97411,2516.3,2515.9,5.8193927]
[1729716791794,0.23028259,2516.0,2515.9,4.76319]
[1729716791989,3.97411,2516.3,2515.9,4.76319]
[1729716792311,0.23028259,2516.0,2515.9,4.76319]
[1729716792528,3.97411,2516.3,2515.9,4.76319]
[1729716792684,0.23028259,2516.0,2515.9,4.76319]
[1729716793121,3.97411,2516.3,2515.9,4.76319]
[1729716793322,0.23028259,2516.0,2515.9,4.76319]
[1729716793692,3.97411,2516.3,2515.9,4.76319]
[1729716793891,0.23028259,2516.0,2515.9,4.76319]
[1729716794121,3.97411,2516.3,2515.9,4.76319]
[1729716794430,0.23028259,2516.0,2515.9,4.76319]
[1729716794614,3.97411,2516.3,2515.9,4.76319]
[1729716794922,0.23028259,2516.0,2515.9,4.76319]
[1729716795122,3.97411,2516.3,2515.9,4.76319]
[1729716795326,0.23028259,2516.2,2515.9,4.76319]
[1729716795859,3.97411,2516.3,2515.9,0.7885]
[1729716796065,0.23028259,2516.1,2515.9,0.7885]
[1729716796248,3.97411,2516.3,2515.9,0.7885]
[1729716796455,0.23028259,2516.0,2515.9,0.7885]
[1729716797264,3.97426,2516.2,2515.9,0.7885]
[1729716797463,0.23028259,2516.0,2515.9,0.7885]
[1729716797662,3.97426,2516.2,2515.9,0.7885]
[1729716797961,0.23028259,2516.0,2515.9,0.7885]
[1729716798165,3.97426,2516.2,2515.9,0.7885]
[1729716798739,0.23028259,2516.1,2515.9,0.7885]
[1729716804756,0.23028259,2516.1,2515.9,0.86798641]
[1729716805298,0.23028259,2516.1,2515.9,0.7885]
[1729716806081,4.20468259,2516.1,2515.9,0.7885]
[1729716807093,4.20468259,2516.1,2515.4,6.61801699]
[1729716807094,3.97485,2515.9,2515.4,6.61801699]
[1729716807305,4.77615,2515.9,2515.4,6.61801699]
[1729716807590,3.97543,2515.5,2515.2,0.8184]
[1729716807803,3.97574,2515.3,2515.0,2.47587207]
[1729716807952,1.82411699,2515.5,2515.0,2.47587207]
[1729716807953,3.97544,2515.5,2515.0,2.47587207]
[1729716808152,4.2057955,2515.4,2515.0,2.47587207]
[1729716808606,3.97568,2515.3,2515.0,0.8184]
[1729716808890,0.23012879,2515.2,2515.0,0.8184]
[1729716809394,0.23010315,2515.1,2515.0,0.8184]
[1729716809568,3.97568,2515.3,2515.0,0.8184]
[1729716809769,0.23010315,2515.2,2515.0,0.8184]
[1729716810002,3.97568,2515.3,2515.0,0.8184]
[1729716810297,0.23010315,2515.2,2515.0,0.8184]
[1729716810595,3.97568,2515.3,2515.0,0.8184]
[1729716810815,4.20593315,2515.2,2514.9,1.90363243]
[1729716811011,4.20593315,2515.2,2514.8,0.8328]
[1729716811312,5.02409447,2515.2,2514.8,0.8328]
[1729716811971,4.20593315,2515.2,2514.8,2.65691699]
[1729716815195,4.20593315,2515.2,2514.8,6.63334699]
[1729716818137,4.20593315,2515.2,2514.8,0.8328]
[1729716818819,3.976,2515.1,2514.8,0.8328]
[1729716819147,3.976,2515.1,2514.7,6.87251717]
[1729716819148,1.03793912,2515.0,2514.7,1.07187018]
[1729716819320,5.80056699,2514.8,2514.7,1.07187018]
[1729716819639,6.83807022,2514.8,2514.7,1.07187018]
[1729716820212,6.83807022,2514.8,2514.1,3.97752]
[1729716820213,3.9768,2514.6,2514.1,3.97752]
[1729716820544,0.22908613,2514.5,2514.2,3.97731]
[1729716820757,0.22908613,2514.5,2514.2,5.80142699]
[1729716820945,4.78509,2514.7,2514.2,5.80142699]
[1729716820946,3.97677,2514.6,2514.2,5.80142699]
[1729716821430,0.22908613,2514.5,2514.2,3.97731]
[1729716821746,0.22908613,2514.5,2514.2,5.80142699]
[1729716822173,0.22908613,2514.5,2514.4,8.94792398]
[1729716822372,1.82411699,2515.4,2514.4,3.14671699]
[1729716822541,6.02055109,2515.3,2514.7,1.82411699]
[1729716822730,6.02055109,2515.3,2514.8,3.97644]
[1729716823430,6.02055109,2515.3,2514.6,5.80081699]
[1729716823431,5.04479109,2515.3,2514.6,5.80081699]
[1729716823728,3.97591,2515.2,2514.7,5.80070699]
[1729716824156,3.97591,2515.2,2514.7,3.97659]
[1729716824476,0.2206741,2515.1,2514.7,3.97659]
[1729716824630,0.2206741,2515.1,2514.7,5.80070699]
[1729716825325,0.2206741,2515.1,2514.7,5.88023063]
[1729716825966,0.2206741,2515.1,2514.7,3.97659]
[1729716826136,0.9883741,2515.1,2514.6,1.82411699]
[1729716826341,4.9643841,2515.1,2514.6,3.97668]
[1729716826679,4.9643841,2515.1,2514.6,5.80079699]
[1729716827367,3.97616,2515.0,2514.6,5.80079699]
[1729716827732,0.2206741,2514.9,2514.6,5.80079699]
[1729716828176,4.74371,2515.1,2514.6,5.80079699]
[1729716828469,0.2206741,2515.0,2514.6,5.80079699]
[1729716830103,0.2206741,2515.0,2514.7,1.82411699]
[1729716830805,4.1968941,2515.0,2514.6,1.82411699]
[1729716831295,4.1968941,2515.0,2514.6,5.80087699]
[1729716832704,8.1731341,2515.0,2514.6,1.82411699]
[1729716832863,8.1731141,2515.0,2514.6,1.82411699]
[1729716833063,4.1968941,2515.0,2514.6,1.82411699]
[1729716833678,0.2206741,2515.0,2514.8,1.82411699]
[1729716833891,0.2206741,2515.0,2514.7,5.80072699]
[1729716834090,0.2206741,2515.0,2514.7,6.83347669]
[1729716834272,0.2206741,2514.9,2514.7,6.83347669]
[1729716834657,4.5643741,2515.1,2514.7,6.83347669]
[1729716834862,0.21331829,2514.8,2514.7,6.83347669]
[1729716835356,4.5643741,2515.1,2514.7,6.83347669]
[1729716835560,0.21331829,2515.0,2514.7,6.83347669]
[1729716837275,3.97631,2514.9,2514.5,0.55]
[1729716837474,3.97631,2514.9,2514.1,0.7726]
[1729716837475,0.7677,2514.8,2514.1,0.7726]
[1729716837716,4.95765849,2514.8,2514.4,3.97706]
[1729716837922,4.95765849,2514.8,2514.4,1.82411699]
[1729716839716,0.21349849,2514.8,2514.7,1.82411699]
[1729716840022,0.7677,2515.1,2514.7,5.80072699]
[1729716840218,0.21349849,2515.0,2514.7,5.80072699]
[1729716840580,0.21349849,2515.0,2514.8,7.95282]
[1729716840901,0.21349849,2515.0,2514.6,6.57335699]
[1729716841088,0.21349849,2515.0,2514.7,1.82411699]
[1729716841296,0.21349849,2515.0,2514.8,3.97645]
[1729716841675,0.21349849,2515.0,2514.9,2.57451699]
[1729716841875,0.21349849,2515.0,2514.9,7.10081699]
[1729716842199,3.97553,2515.4,2515.0,3.97613]
[1729716842379,0.21349849,2515.3,2514.9,7.10080699]
[1729716842582,0.21349849,2515.3,2514.9,8.20852569]
[1729716842918,0.21349849,2515.3,2514.9,6.3844087]
[1729716843123,0.21349849,2515.3,2514.7,3.97648]
[1729716843124,0.7998,2515.1,2514.8,5.80056699]
[1729716843421,0.21375592,2515.0,2514.8,5.80056699]
[1729716844220,0.21375592,2515.0,2514.8,7.9529]
[1729716844516,0.21375592,2515.0,2514.8,6.92359226]
[1729716844879,0.21375592,2515.0,2514.9,3.9763]
[1729716845123,0.21375592,2515.0,2514.9,5.80041699]
[1729716845301,4.77548,2515.3,2514.9,5.80041699]
[1729716845506,0.21373876,2515.0,2514.9,5.80041699]
[1729716845683,4.77548,2515.3,2514.9,6.89039422]
[1729716845886,0.21373876,2515.0,2514.9,6.89039422]
[1729716846111,4.77548,2515.3,2514.9,6.89039422]
[1729716846422,4.77548,2515.3,2514.9,5.80041699]
[1729716846593,0.21373876,2515.2,2514.9,5.80041699]
[1729716846794,4.77548,2515.3,2514.9,5.80041699]
[1729716846995,0.21373876,2515.2,2515.0,3.97613]
[1729716847184,0.7998,2515.3,2515.0,4.77643]
[1729716847388,0.21373876,2515.2,2515.0,4.77643]
[1729716847715,0.7998,2515.3,2515.2,3.97582]
[1729716847923,0.7811,2515.6,2515.3,3.9756]
[1729716848096,0.7811,2515.6,2515.2,3.97582]
[1729716848292,2.60521699,2515.6,2515.2,3.97573]
[1729716848684,0.7811,2515.6,2515.2,3.97573]
[1729716848887,2.60521699,2515.6,2515.2,3.97573]
[1729716849089,3.66075769,2515.6,2515.2,3.97573]
[1729716850215,7.63594769,2515.6,2515.2,3.97573]
[1729716850581,5.8118307,2515.6,2515.2,3.97573]
[1729716850785,7.63594769,2515.6,2515.2,3.97573]
[1729716851181,0.21391892,2515.5,2515.2,3.97573]
[1729716852395,0.21391892,2515.5,2515.1,3.97597]
[1729716854703,2.03803591,2515.5,2515.1,3.97597]
[1729716854893,0.21391892,2515.5,2515.1,3.97597]
[1729716855521,0.21391892,2515.5,2515.2,3.9758]
[1729716855890,0.21391892,2515.5,2515.1,3.97597]
[1729716856308,0.21391892,2515.5,2515.1,5.80008699]
[1729716856599,0.21391892,2515.5,2515.1,3.97597]
[1729716857926,0.21391892,2515.5,2515.1,7.95186]
[1729716858520,0.21391892,2515.5,2515.1,3.97589]
[1729716860451,0.21391892,2515.5,2515.1,3.97598]
[1729716861230,6.01341591,2515.5,2515.1,3.97598]
[1729716862423,6.01341591,2515.5,2515.0,0.8003]
[1729716862637,6.01341591,2515.5,2515.0,3.97604]
[1729716862638,3.97552,2515.4,2515.0,3.97604]
[1729716862835,0.21404762,2515.3,2515.0,3.97604]
[1729716863217,0.7605,2515.2,2515.0,3.97604]
[1729716863611,0.21404762,2515.1,2515.0,3.97604]
[1729716865054,0.21404762,2515.1,2514.9,3.97623]
[1729716865930,0.7605,2515.2,2514.9,3.97623]
[1729716866254,0.21404762,2515.1,2514.9,3.97623]
[1729716869080,0.21404762,2515.1,2515.0,6.64638039]
[1729716869251,0.8078,2515.8,2515.4,3.9755]